bitfinex/quotes_ETHUSD_20240924
["timestamp","ask_amount","ask_price","bid_price","bid_amount"]
[1727214205707,0.84067807,2649.2,2648.7,3.81442969]
[1727214205708,0.78405576,2649.2,2648.8,3.77527]
[1727214205905,0.57933787,2649.1,2648.8,3.77527]
[1727214206127,0.57933787,2649.1,2648.9,0.03853223]
[1727214206844,0.78405576,2649.3,2648.9,3.81359223]
[1727214207045,0.84048458,2649.3,2648.9,0.03853223]
[1727214207216,0.038194,2649.4,2649.0,3.77497]
[1727214207423,0.20003504,2649.3,2649.0,3.77497]
[1727214207612,0.20003504,2649.3,2649.1,0.03840887]
[1727214209847,0.20003504,2649.3,2649.2,0.03971454]
[1727214210148,0.20003504,2649.3,2649.0,3.02538347]
[1727214210448,0.20003504,2649.3,2649.1,0.03913771]
[1727214212755,0.11373952,2649.4,2649.1,0.03913771]
[1727214213419,0.11373952,2649.4,2649.2,0.04794855]
[1727214213748,0.11373952,2649.4,2648.8,3.77527]
[1727214213749,0.11373952,2649.4,2649.0,3.77497]
[1727214213960,0.11373952,2649.4,2649.3,0.04783173]
[1727214214170,0.11373952,2649.4,2649.0,3.77497]
[1727214214323,0.038194,2649.4,2649.3,0.05580369]
[1727214214519,0.038194,2649.4,2649.0,7.54988]
[1727214214717,0.038194,2649.4,2649.3,0.05580369]
[1727214214920,0.038194,2649.4,2649.0,7.54988]
[1727214215153,0.038194,2649.4,2649.3,0.05579703]
[1727214215352,0.038194,2649.4,2649.0,7.54988]
[1727214215565,0.038194,2649.4,2649.3,0.05579703]
[1727214216158,0.038194,2649.4,2649.1,3.77476]
[1727214216325,0.038194,2649.4,2649.3,0.05577037]
[1727214216524,0.038194,2649.4,2649.2,0.05587316]
[1727214216854,0.038194,2649.4,2649.3,0.05577037]
[1727214217060,0.038194,2649.4,2649.1,3.77476]
[1727214217264,0.038194,2649.4,2649.2,0.05587316]
[1727214218261,0.038194,2649.4,2649.2,3.83056316]
[1727214223067,0.038194,2649.4,2649.3,3.77458]
[1727214223269,0.038194,2649.4,2649.3,3.83002382]
[1727214224878,0.038194,2649.4,2649.3,4.5905022]
[1727214227682,0.038194,2649.4,2649.3,4.5905022]
[1727214230392,0.038194,2649.4,2649.3,5.3645022]
[1727214233393,0.038194,2649.4,2649.3,1.5899222]
[1727214233589,0.038194,2649.4,2649.3,5.3645022]
[1727214234153,0.038194,2649.4,2649.3,5.9145022]
[1727214234396,0.038194,2649.4,2649.3,7.35718413]
[1727214234959,0.038194,2649.4,2649.3,7.37252845]
[1727214235282,0.038194,2649.4,2649.3,6.59852845]
[1727214237857,0.038194,2649.4,2649.3,5.15584652]
[1727214238095,0.038194,2649.4,2649.3,6.59852845]
[1727214239493,0.038194,2649.4,2649.3,5.15584652]
[1727214239991,0.038194,2649.4,2649.3,6.59852845]
[1727214240702,0.86457388,2649.4,2649.3,6.59852845]
[1727214240996,0.038194,2649.4,2649.3,6.59852845]
[1727214241562,0.86550067,2649.4,2649.3,6.59852845]
[1727214241869,0.038194,2649.4,2649.3,6.59852845]
[1727214242593,2.1071052,2649.4,2649.3,6.59852845]
[1727214243296,2.89116096,2649.4,2649.3,6.59852845]
[1727214245171,2.89274609,2649.4,2649.3,6.59852845]
[1727214246087,2.89274609,2649.4,2649.3,6.52774031]
[1727214249882,0.82224976,2649.4,2649.3,6.52774031]
[1727214250082,2.87884492,2649.4,2649.3,6.52774031]
[1727214251086,3.4695827,2649.4,2649.3,6.52774031]
[1727214251282,2.68552694,2649.4,2649.3,5.73990681]
[1727214252567,3.86362759,2649.4,2649.3,5.73990681]
[1727214253005,3.86362759,2649.4,2649.3,4.29722488]
[1727214253204,3.86362759,2649.4,2649.3,5.73990681]
[1727214253414,2.68552694,2649.4,2649.3,5.73990681]
[1727214253976,0.55,2649.3,2646.9,3.90891635]
[1727214254179,0.55,2649.3,2644.7,7.41]
[1727214254180,3.77871,2646.4,2646.2,0.038194]
[1727214254471,8.06774933,2646.4,2646.2,0.038194]
[1727214254673,9.24601537,2646.4,2646.2,0.038194]
[1727214254880,14.12378009,2646.4,2646.2,0.038194]
[1727214255082,14.12378009,2646.4,2645.1,5.22322193]
[1727214255083,3.77903,2646.2,2645.1,5.22322193]
[1727214255277,3.77903,2646.2,2644.9,4.58908]
[1727214255278,0.78431661,2645.8,2645.2,0.05541775]
[1727214255499,0.78431661,2645.8,2644.9,0.8083]
[1727214255500,1.37593678,2646.1,2645.1,1.44268193]
[1727214255706,2.27442674,2646.0,2645.2,0.06234497]
[1727214255881,0.78431661,2646.0,2645.2,0.06234497]
[1727214256131,0.78431661,2646.0,2645.4,1.44268193]
[1727214256296,0.90976502,2646.0,2645.3,3.13390244]
[1727214256498,3.77901,2646.2,2645.4,0.38248003]
[1727214258334,7.55813,2646.2,2645.4,0.38248003]
[1727214258631,3.77901,2646.2,2645.4,0.38248003]
[1727214259094,3.77916,2646.1,2645.4,0.38248003]
[1727214261591,3.77916,2646.1,2645.6,3.13390244]
[1727214262016,3.77916,2646.1,2645.7,0.06250742]
[1727214265892,4.237191,2646.2,2645.7,0.06250742]
[1727214266601,8.016321,2646.2,2645.7,0.06250742]
[1727214266798,4.237191,2646.2,2645.7,0.06250742]
[1727214267926,4.58131,2646.6,2645.9,3.13390244]
[1727214268295,4.58131,2646.6,2646.0,0.06299945]
[1727214268494,3.77874,2646.4,2646.0,0.38268964]
[1727214269997,3.77874,2646.4,2645.9,1.41300543]
[1727214271538,3.77874,2646.4,2645.9,5.19241543]
[1727214275135,3.77874,2646.4,2645.9,3.79006843]
[1727214275314,3.77874,2646.4,2646.0,0.37900684]
[1727214283304,3.77858,2646.5,2646.0,4.15820684]
[1727214285115,3.77858,2646.5,2645.9,3.79000843]
[1727214285446,3.77858,2646.5,2646.2,3.13390244]
[1727214285752,3.77858,2646.5,2646.2,0.32924284]
[1727214285913,3.77858,2646.5,2646.0,3.77916]
[1727214286113,3.77858,2646.5,2646.1,0.755851]
[1727214291317,3.77858,2646.5,2646.0,3.74620377]
[1727214295067,3.77858,2646.5,2646.0,2.34387383]
[1727214295364,3.77858,2646.5,2646.0,3.77922]
[1727214295522,0.87667285,2646.4,2646.0,4.80366787]
[1727214296439,2.97185838,2646.3,2646.0,4.80366787]
[1727214296641,0.78431661,2646.3,2646.0,4.80366787]
[1727214297166,0.78431661,2646.3,2646.1,1.44590867]
[1727214297459,2.18801057,2646.2,2646.1,1.44590867]
[1727214297661,2.18801057,2646.2,2646.0,4.80366787]
[1727214297827,2.97079484,2646.1,2646.0,4.80366787]
[1727214298662,5.5119588,2646.1,2646.0,4.80366787]
[1727214299357,7.67536144,2646.1,2646.0,4.80366787]
[1727214300877,7.67536111,2646.1,2646.0,4.80366787]
[1727214301539,10.0393685,2646.1,2646.0,4.80366787]
[1727214301736,10.05279602,2646.1,2646.0,4.80366787]
[1727214302140,10.0527976,2646.1,2646.0,4.80366787]
[1727214305464,7.68878597,2646.1,2646.0,3.77922]
[1727214305663,6.15089263,2646.1,2646.0,3.77922]
[1727214305843,7.68877688,2646.1,2646.0,3.77922]
[1727214306569,5.49490864,2646.1,2646.0,3.77922]
[1727214307977,5.49490864,2646.1,2646.0,5.01922]
[1727214309078,5.49490864,2646.1,2646.0,6.46512867]
[1727214309279,7.46574605,2646.1,2646.0,6.46512867]
[1727214309576,7.46574605,2646.1,2646.0,5.01922]
[1727214309755,6.5193519,2646.1,2646.0,5.01922]
[1727214310132,7.4657376,2646.1,2646.0,5.01922]
[1727214310347,5.4949009,2646.1,2646.0,5.01922]
[1727214310871,7.46573831,2646.1,2646.0,5.01922]
[1727214311433,5.4954621,2646.1,2646.0,5.01922]
[1727214311980,7.07271759,2646.1,2646.0,5.01922]
[1727214312182,7.07271409,2646.1,2646.0,5.01922]
[1727214312499,6.5203151,2646.1,2646.0,5.01922]
[1727214312666,9.59606493,2646.1,2646.0,5.01922]
[1727214313094,9.59606588,2646.1,2646.0,5.01922]
[1727214314498,7.46670048,2646.1,2646.0,5.01922]
[1727214315401,5.49546133,2646.1,2646.0,5.01922]
[1727214315602,7.07306714,2646.1,2646.0,5.01922]
[1727214315901,5.49546133,2646.1,2646.0,5.01922]
[1727214316068,7.07308288,2646.1,2646.0,5.01922]
[1727214316270,7.05775218,2646.1,2646.0,5.01922]
[1727214316571,7.05772023,2646.1,2646.0,5.01922]
[1727214317504,6.11135482,2646.1,2646.0,5.01922]
[1727214317703,7.0577153,2646.1,2646.0,5.01922]
[1727214320695,5.51987644,2646.1,2646.0,5.01922]
[1727214321013,4.87077448,2646.1,2646.0,5.01922]
[1727214321230,7.05955046,2646.1,2646.0,5.01922]
[1727214321940,7.05954156,2646.1,2646.0,5.01922]
[1727214322093,7.05954998,2646.1,2646.0,5.01922]
[1727214323203,5.48192843,2646.1,2646.0,5.01922]
[1727214323502,7.0598891,2646.1,2646.0,5.01922]
[1727214323999,3.94409099,2646.1,2646.0,5.01922]
[1727214324201,5.52226208,2646.1,2646.0,5.01922]
[1727214324812,7.06011314,2646.1,2646.0,5.01922]
[1727214325730,4.87133081,2646.1,2646.0,5.01922]
[1727214325943,5.52301455,2646.1,2646.0,5.01922]
[1727214326240,7.06085193,2646.1,2646.0,5.01922]
[1727214327104,7.06084417,2646.1,2646.0,5.01922]
[1727214327771,5.48267308,2646.1,2646.0,5.01922]
[1727214328163,7.06140755,2646.1,2646.0,5.01922]
[1727214328753,4.51844932,2646.1,2646.0,6.80036787]
[1727214329079,4.51844932,2646.1,2646.0,11.6414362]
[1727214329080,2.19131589,2646.1,2646.0,11.6414362]
[1727214329385,2.58606939,2646.1,2646.0,11.6414362]
[1727214329543,3.17751247,2646.1,2646.0,11.6414362]
[1727214329738,1.99331573,2646.1,2646.0,11.6414362]
[1727214329987,3.17074135,2646.1,2646.0,11.6414362]
[1727214330156,3.17074135,2646.1,2646.0,10.8847362]
[1727214330157,2.1910996,2646.1,2646.0,10.8847362]
[1727214330841,0.78922695,2646.1,2646.0,10.8847362]
[1727214331078,2.08134943,2646.1,2646.0,10.8847362]
[1727214332683,2.47631922,2646.1,2646.0,10.8847362]
[1727214332843,2.08120146,2646.1,2646.0,10.8847362]
[1727214335784,2.08067919,2646.1,2646.0,10.8847362]
[1727214336293,0.78907898,2646.1,2646.0,10.8847362]
[1727214336619,2.08063374,2646.1,2646.0,10.8847362]
[1727214340623,2.08038778,2646.1,2646.0,10.8847362]
[1727214345734,2.07995796,2646.1,2646.0,10.8847362]
[1727214348803,2.940392,2646.1,2646.0,10.8847362]
[1727214350443,2.94016643,2646.1,2646.0,10.8847362]
[1727214355439,2.94034911,2646.1,2646.0,10.8847362]
[1727214355740,2.93972638,2646.1,2646.0,10.8847362]
[1727214360438,2.94015605,2646.1,2646.0,10.8847362]
[1727214360736,2.1516998,2646.1,2646.0,10.8847362]
[1727214360940,2.94031022,2646.1,2646.0,10.8847362]
[1727214361306,2.1516998,2646.1,2646.0,10.8847362]
[1727214363225,3.33589654,2646.1,2646.0,10.8847362]
[1727214363630,3.33608825,2646.1,2646.0,10.8847362]
[1727214364529,2.15189151,2646.1,2646.0,10.8847362]
[1727214366463,3.33608825,2646.1,2646.0,10.8847362]
[1727214368445,3.33611352,2646.1,2646.0,10.8847362]
[1727214371291,3.90094141,2646.1,2646.0,10.8847362]
[1727214373262,2.08058678,2646.1,2646.0,11.6613362]
[1727214373456,2.94166673,2646.1,2646.0,12.2113362]
[1727214373689,1.57873447,2646.4,2646.1,7.32914]
[1727214373690,0.78896686,2646.2,2646.1,7.32914]
[1727214373896,0.78896686,2646.4,2646.2,2.42638762]
[1727214374200,0.78896686,2646.4,2646.3,5.77853763]
[1727214374488,2.13754703,2646.4,2646.3,7.01853763]
[1727214374667,2.13754703,2646.4,2646.3,7.54880973]
[1727214375070,0.85501881,2646.4,2646.3,10.54880973]
[1727214375386,0.78896686,2646.5,2646.4,6.77871]
[1727214375600,2.90879163,2646.5,2646.4,8.12278261]
[1727214376270,1.63689677,2646.5,2646.4,8.12278261]
[1727214376475,0.84792991,2646.5,2646.4,8.12278261]
[1727214376675,0.84792991,2646.5,2646.4,8.89938261]
[1727214376992,0.78896686,2646.6,2646.5,6.77857]
[1727214377198,2.90877268,2646.6,2646.5,11.18863039]
[1727214377406,2.11980582,2646.6,2646.5,11.11306686]
[1727214378199,2.11928592,2646.6,2646.5,11.11306686]
[1727214378403,0.84771437,2646.6,2646.5,11.11306686]
[1727214378805,0.78896686,2646.7,2646.6,3.77843]
[1727214379103,2.90790106,2646.7,2646.6,4.54403945]
[1727214379293,2.1189342,2646.7,2646.6,4.54403945]
[1727214379465,0.84757368,2646.7,2646.6,4.54403945]
[1727214381407,0.78896686,2646.8,2646.7,3.77828]
[1727214381704,2.90806229,2646.8,2646.7,5.22418867]
[1727214382003,2.90806229,2646.8,2646.7,6.46795763]
[1727214382575,2.11909543,2646.8,2646.7,6.46795763]
[1727214383089,2.11857395,2646.8,2646.7,6.46795763]
[1727214383281,0.84742958,2646.8,2646.7,7.81203024]
[1727214385319,0.78896686,2646.9,2646.7,7.81203024]
[1727214385503,0.78896686,2646.9,2646.8,3.77814]
[1727214385703,2.90273586,2646.9,2646.8,3.77814]
[1727214385880,2.90273586,2646.9,2646.8,3.78190896]
[1727214385881,2.90273481,2646.9,2646.8,3.78190896]
[1727214386082,2.90273481,2646.9,2646.8,5.01711003]
[1727214386773,2.11376795,2646.9,2646.8,5.01711003]
[1727214387307,0.84550718,2646.9,2646.8,5.01711003]
[1727214387985,0.78896686,2647.0,2646.9,3.778]
[1727214388191,2.90234604,2647.0,2646.9,3.778]
[1727214388795,2.90234604,2647.0,2646.9,6.39536732]
[1727214389280,2.11337918,2647.0,2646.9,6.94536732]
[1727214389601,1.18419674,2647.2,2646.9,6.94536732]
[1727214389602,0.78896686,2647.2,2647.1,3.77771]
[1727214389806,2.90313949,2647.2,2647.1,5.12555157]
[1727214390720,2.11417263,2647.2,2647.1,5.12555157]
[1727214391019,0.84566905,2647.2,2647.1,3.78147896]
[1727214391315,0.78896686,2647.3,2647.1,3.78147896]
[1727214391526,0.78896686,2647.3,2647.2,3.77757]
[1727214391822,1.18419674,2647.4,2647.3,3.77743]
[1727214391823,0.78650169,2647.4,2647.3,3.77743]
[1727214392021,2.90001424,2647.4,2647.3,3.78119896]
[1727214392319,0.84540502,2647.4,2647.3,3.78119896]
[1727214392723,8.16650169,2647.5,2647.4,3.77729]
[1727214392901,8.16650169,2647.5,2647.4,2.98888292]
[1727214392902,10.27955972,2647.5,2647.4,2.98888292]
[1727214393810,2.89955972,2647.5,2647.4,4.22888292]
[1727214395924,2.89475803,2647.5,2647.4,4.22888292]
[1727214396123,3.68069702,2647.5,2647.4,5.01729]
[1727214397586,3.6635091,2647.5,2647.4,5.01729]
[1727214397831,2.8818091,2647.5,2647.4,5.01729]
[1727214398821,2.09587011,2647.5,2647.4,5.01729]
[1727214399034,0.83834804,2647.5,2647.4,5.01729]
[1727214399641,0.83818212,2647.5,2647.4,5.01729]
[1727214400290,0.78593899,2647.6,2647.4,5.01729]
[1727214400492,1.56763899,2647.7,2647.4,5.01729]
[1727214400693,0.83816111,2647.6,2647.5,3.77709]
[1727214400888,0.83816111,2647.6,2647.5,3.78085896]
[1727214401299,1.56763899,2647.7,2647.5,3.78085896]
[1727214401487,0.83814722,2647.6,2647.5,3.78085896]
[1727214401694,1.56763899,2647.7,2647.5,3.78085896]
[1727214405146,0.7817,2647.7,2647.5,3.78085896]
[1727214405852,0.7817,2647.7,2647.6,1.24]
[1727214406025,1.61327049,2647.7,2647.6,1.24376896]
[1727214407847,0.038194,2647.8,2647.7,3.77686]
[1727214408052,0.86977306,2647.8,2647.7,3.78062896]
[1727214408649,0.86977306,2647.8,2647.7,5.02062896]
[1727214410112,0.038194,2647.8,2647.7,5.02062896]
[1727214411117,0.86949739,2647.8,2647.7,5.02062896]
[1727214411316,0.86949739,2647.8,2647.7,6.12785072]
[1727214411317,0.038194,2647.8,2647.7,6.12785072]
[1727214411517,0.038194,2647.8,2647.7,8.12375939]
[1727214416274,0.038194,2647.8,2647.7,11.94835939]
[1727214419570,0.038194,2648.6,2648.0,0.55]
[1727214419891,0.038194,2648.6,2648.5,6.59999763]
[1727214420094,0.038194,2648.6,2648.5,7.71308293]
[1727214420461,0.038194,2648.6,2648.5,7.63758239]
[1727214420797,0.038194,2648.6,2648.5,7.71308184]
[1727214421518,0.038194,2648.6,2648.5,8.95308184]
[1727214421713,0.038194,2648.6,2648.5,8.87758239]
[1727214422672,0.038194,2648.6,2648.5,6.60707372]
[1727214422877,0.038194,2648.6,2648.5,11.05298239]
[1727214426540,0.8042,2649.1,2649.0,3.775]
[1727214426719,0.8042,2649.1,2649.0,3.77876896]
[1727214429433,0.816,2649.3,2649.0,3.77876896]
[1727214429606,0.816,2649.3,2649.2,0.00376896]
[1727214429790,0.816,2649.3,2649.0,3.775]
[1727214430225,0.816,2649.3,2649.0,8.44952887]
[1727214430598,0.816,2649.3,2649.0,4.67452887]
[1727214430800,0.816,2649.3,2649.1,3.77486]
[1727214432192,0.816,2649.3,2649.2,3.77472]
[1727214432396,0.038194,2649.4,2649.3,0.345806]
[1727214432860,0.038194,2649.4,2649.2,3.33642049]
[1727214433201,0.038194,2649.4,2649.3,3.77458]
[1727214434142,0.038194,2649.4,2649.2,0.64237242]
[1727214434500,0.038194,2649.4,2649.2,4.41704242]
[1727214435236,0.038194,2649.4,2649.3,3.77458]
[1727214438407,0.3132,2649.6,2649.4,0.001806]
[1727214438606,0.3132,2649.6,2649.5,0.00376896]
[1727214443631,0.3132,2649.8,2649.5,0.00376896]
[1727214443846,0.3132,2649.8,2649.7,0.00376896]
[1727214449749,0.3132,2649.8,2649.5,5.22010867]
[1727214450060,0.3132,2649.8,2649.5,6.11974814]
[1727214450651,0.3132,2649.8,2649.5,9.89395814]
[1727214450956,3.7736,2650.0,2649.5,9.89395814]
[1727214451129,3.7736,2650.0,2649.5,10.64465814]
[1727214451329,3.7736,2650.0,2649.5,6.87044814]
[1727214451651,3.7736,2650.0,2649.6,0.075475]
[1727214451849,3.7736,2650.0,2649.7,1.44590867]
[1727214452623,4.87266899,2650.1,2649.9,0.00376896]
[1727214452824,4.08673,2650.1,2649.9,0.00376896]
[1727214453745,0.3132,2650.1,2649.9,0.00376896]
[1727214455322,2.83094596,2650.1,2649.9,0.00376896]
[1727214455559,4.59743299,2650.2,2649.9,0.00376896]
[1727214455858,0.81799124,2650.1,2649.9,0.00376896]
[1727214456020,0.82413299,2650.2,2649.9,0.00376896]
[1727214456229,0.038194,2650.2,2649.9,0.00376896]
[1727214456457,1.64247425,2650.2,2649.9,0.00376896]
[1727214456636,0.038194,2650.2,2649.9,3.77748896]
[1727214456831,0.038194,2650.2,2650.1,0.00376896]
[1727214457032,2.08388311,2650.2,2650.1,0.00376896]
[1727214457246,0.856469,2650.2,2650.1,0.00376896]
[1727214457569,1.95699301,2650.6,2650.1,0.00376896]
[1727214457570,0.038194,2651.0,2650.9,3.7723]
[1727214457873,0.038194,2651.0,2650.9,8.07676896]
[1727214462841,0.038194,2651.0,2650.9,5.97267763]
[1727214464460,0.038194,2651.0,2650.9,9.52267763]
[1727214465068,0.038194,2651.0,2650.9,8.07676896]
[1727214465271,0.038194,2651.0,2650.9,9.52267763]
[1727214465467,0.038194,2651.0,2650.9,8.07676896]
[1727214465671,0.038194,2651.0,2650.9,9.52267763]
[1727214484743,0.038194,2651.0,2650.9,9.52267763]
[1727214501398,0.038194,2651.0,2650.9,10.41371114]
[1727214503374,0.038194,2651.0,2650.9,12.00041892]
[1727214504693,0.038194,2651.0,2650.9,12.00317748]
[1727214505537,0.038194,2651.0,2650.9,10.4164697]
[1727214506062,0.038194,2651.0,2650.9,12.00047132]
[1727214506492,0.038194,2651.0,2650.9,11.10667925]
[1727214507718,0.038194,2651.0,2650.9,9.52267763]
[1727214507923,0.038194,2651.0,2650.9,10.41641592]
[1727214510796,0.038194,2651.0,2650.9,9.52267763]
[1727214513805,0.038194,2651.0,2650.9,10.4165999]
[1727214516529,0.038194,2651.0,2650.9,9.52267763]
[1727214519147,0.038194,2651.0,2650.9,10.41693961]
[1727214520146,0.038194,2651.0,2650.9,10.91693961]
[1727214521150,0.038194,2651.0,2650.9,12.10498429]
[1727214521450,0.038194,2651.0,2650.9,10.91693961]
[1727214521811,0.038194,2651.0,2650.9,10.91721022]
[1727214524210,0.038194,2651.0,2650.9,11.41721022]
[1727214526634,0.038194,2651.0,2650.9,12.60550638]
[1727214526842,0.038194,2651.0,2650.9,11.4174617]
[1727214528222,0.038194,2651.0,2650.9,11.9174617]
[1727214528424,0.038194,2651.0,2650.9,13.10550638]
[1727214530847,0.038194,2651.0,2650.9,15.48419072]
[1727214531731,0.038194,2651.0,2650.9,13.10550638]
[1727214532259,0.038194,2651.0,2650.9,13.60550638]
[1727214533360,0.038194,2651.0,2650.9,15.98419072]
[1727214536377,0.038194,2651.0,2650.9,16.48390394]
[1727214536599,0.038194,2651.8,2651.7,5.21706867]
[1727214536745,0.82731906,2652.6,2652.5,3.77002]
[1727214537089,0.038194,2652.6,2652.5,5.11603737]
[1727214537375,0.038194,2652.6,2652.5,5.84508695]
[1727214537794,0.038194,2652.6,2652.5,6.46795778]
[1727214538102,0.038194,2652.6,2652.5,5.84508695]
[1727214539541,0.038194,2652.6,2652.5,5.76969763]
[1727214540138,0.038194,2652.6,2652.5,5.84508014]
[1727214540342,0.038194,2652.6,2652.5,8.84508014]
[1727214540566,0.038194,2652.6,2652.5,8.76969763]
[1727214546756,0.038194,2652.6,2652.5,7.32378896]
[1727214546962,0.038194,2652.6,2652.5,8.76969763]
[1727214547673,0.038194,2652.6,2652.5,9.56469763]
[1727214559602,0.038194,2652.6,2652.5,10.18322433]
[1727214559967,0.038194,2652.6,2652.5,11.11099869]
[1727214560671,0.038194,2652.6,2652.5,10.18322433]
[1727214560864,0.038194,2652.6,2652.5,9.56469763]
[1727214561175,0.038194,2652.6,2652.5,10.18273973]
[1727214561375,0.038194,2652.6,2652.5,9.56469763]
[1727214562184,0.038194,2652.6,2652.5,10.27866542]
[1727214562997,0.038194,2652.6,2652.5,10.27860573]
[1727214563313,0.038194,2653.4,2653.3,8.09389]
[1727214563470,0.038194,2653.4,2653.3,9.54356763]
[1727214564367,0.038194,2653.4,2653.3,8.09765896]
[1727214564572,0.038194,2653.4,2653.3,9.54356763]
[1727214569718,0.038194,2653.4,2653.3,8.09765896]
[1727214570020,0.038194,2653.4,2653.3,9.54356763]
[1727214572023,0.038194,2653.4,2653.3,8.21856763]
[1727214573330,0.038194,2653.4,2653.3,7.32265896]
[1727214573503,0.038194,2653.4,2653.3,8.76856763]
[1727214577390,0.038194,2653.4,2653.3,7.32265896]
[1727214577731,0.038194,2653.4,2653.3,8.76856763]
[1727214582727,0.038194,2653.4,2653.3,9.3864488]
[1727214583147,0.038194,2653.4,2653.3,10.31360017]
[1727214583319,0.038194,2653.4,2653.3,9.3864488]
[1727214583499,0.038194,2653.4,2653.3,10.31366368]
[1727214583843,0.038194,2653.4,2653.3,8.76856763]
[1727214584496,0.038194,2653.4,2653.3,9.3868108]
[1727214585326,0.038194,2653.4,2653.3,8.76856763]
[1727214585506,0.038194,2653.4,2653.3,9.38690366]
[1727214585706,0.038194,2653.4,2653.3,10.31438438]
[1727214585906,0.038194,2653.4,2653.3,10.31438237]
[1727214586132,0.038194,2653.4,2653.3,9.38690366]
[1727214586695,0.038194,2653.4,2653.3,9.88689603]
[1727214587196,0.038194,2653.4,2653.3,10.81438664]
[1727214587540,0.038194,2653.4,2653.3,10.81451768]
[1727214590837,0.038194,2653.4,2653.3,11.31451768]
[1727214591745,0.038194,2653.4,2653.3,11.31462769]
[1727214592235,0.038194,2653.4,2653.3,12.10095427]
[1727214592393,0.038194,2653.4,2653.3,11.31462769]
[1727214593332,0.038194,2653.4,2653.3,12.10095427]
[1727214594714,0.038194,2653.4,2653.3,12.60095427]
[1727214596404,0.038194,2653.4,2653.3,11.98325592]
[1727214596637,0.038194,2653.4,2653.3,12.60216372]
[1727214596946,0.038194,2653.4,2653.3,13.36546372]
[1727214597118,0.068194,2654.2,2654.1,5.76365867]
[1727214597317,0.068194,2654.2,2654.1,5.76742763]
[1727214602453,0.068194,2654.2,2654.1,4.32151896]
[1727214602610,0.068194,2654.2,2654.1,5.76742763]
[1727214606354,0.068194,2654.2,2654.1,6.53072763]
[1727214606649,0.068194,2654.2,2654.1,5.76742763]
[1727214616684,0.068194,2654.2,2654.1,8.76742763]
[1727214616890,0.068194,2654.2,2654.1,9.69747447]
[1727214618369,0.068194,2654.2,2654.1,8.76742763]
[1727214618699,1.1836876,2654.6,2654.1,8.76742763]
[1727214618700,1.04100666,2654.6,2654.5,3.76718]
[1727214618870,2.75935236,2654.6,2654.5,4.32094896]
[1727214623826,2.75345419,2654.6,2654.5,4.32094896]
[1727214628927,1.71244753,2654.6,2654.5,0.00376896]
[1727214629224,3.08234152,2654.6,2654.5,0.00376896]
[1727214629428,3.0823752,2654.6,2654.5,0.00376896]
[1727214629605,2.8966379,2654.6,2654.5,0.00376896]
[1727214629792,2.89661393,2654.6,2654.5,0.00376896]
[1727214629994,3.08238988,2654.6,2654.5,0.00376896]
[1727214632130,3.08238988,2654.6,2654.5,0.62361578]
[1727214632731,3.08253996,2654.6,2654.5,0.62361578]
[1727214633098,3.0826934,2654.6,2654.5,0.62361578]
[1727214633329,2.89693572,2654.6,2654.5,0.62361578]
[1727214633626,4.66084596,2654.6,2654.5,0.62361578]
[1727214633994,4.66096869,2654.6,2654.5,0.62361578]
[1727214634560,3.2908511,2654.6,2654.5,0.62361578]
[1727214634830,4.66096869,2654.6,2654.5,0.62361578]
[1727214635007,3.08271856,2654.6,2654.5,0.62361578]
[1727214635495,3.08281408,2654.6,2654.5,0.62361578]
[1727214636331,3.08285227,2654.6,2654.5,0.62361578]
[1727214636496,3.08286566,2654.6,2654.5,0.62361578]
[1727214637196,4.66111579,2654.6,2654.5,0.62361578]
[1727214638300,3.08286566,2654.6,2654.5,0.62361578]
[1727214638511,4.66111579,2654.6,2654.5,0.62361578]
[1727214642817,3.97780572,2654.6,2654.5,0.62361578]
[1727214643121,4.66399965,2654.6,2654.5,0.62361578]
[1727214643899,4.66399965,2654.6,2654.5,0.07361578]
[1727214644439,4.66566403,2654.6,2654.5,0.07361578]
[1727214645637,4.66566403,2654.6,2654.5,0.62361578]
[1727214650041,3.08574952,2654.6,2654.5,0.62361578]
[1727214650221,4.66567884,2654.6,2654.5,0.62361578]
[1727214652342,2.95019401,2654.6,2654.5,0.62361578]
[1727214652671,4.66578729,2654.6,2654.5,0.62361578]
[1727214653336,4.66578729,2654.6,2654.5,1.12361578]
[1727214654548,4.66578943,2654.6,2654.5,1.12361578]
[1727214655065,3.08585797,2654.6,2654.5,1.12361578]
[1727214655363,4.66579845,2654.6,2654.5,1.12361578]
[1727214656427,4.66588344,2654.6,2654.5,1.12361578]
[1727214656652,4.6658628,2654.6,2654.5,1.12361578]
[1727214656855,3.08585797,2654.6,2654.5,1.12361578]
[1727214657356,4.66586893,2654.6,2654.5,1.62361578]
[1727214658067,5.06080082,2654.6,2654.5,1.62361578]
[1727214658387,3.08585797,2654.6,2654.5,1.62361578]
[1727214658562,4.66577774,2654.6,2654.5,1.62361578]
[1727214660333,4.66577774,2654.6,2654.5,1.62281578]
[1727214660570,7.93308991,2654.6,2654.5,1.07281578]
[1727214661442,7.93308991,2654.6,2654.5,1.57281578]
[1727214662030,9.90803276,2654.6,2654.5,1.57281578]
[1727214662461,7.93308991,2654.6,2654.5,1.57281578]
[1727214662675,9.90803276,2654.6,2654.5,1.57281578]
[1727214665484,9.90480285,2654.6,2654.5,2.07281578]
[1727214669582,9.90480285,2654.6,2654.5,2.57281578]
[1727214670374,9.9034862,2654.6,2654.5,2.57281578]
[1727214671680,7.9298628,2654.6,2654.5,2.57281578]
[1727214672056,9.9029911,2654.6,2654.5,2.57281578]
[1727214672262,9.90300143,2654.6,2654.5,2.57281578]
[1727214672765,7.9298628,2654.6,2654.5,2.57281578]
[1727214673582,9.90277632,2654.6,2654.5,2.57281578]
[1727214673881,7.9298628,2654.6,2654.5,2.57281578]
[1727214675450,9.90234695,2654.6,2654.5,2.57281578]
[1727214675651,9.90230114,2654.6,2654.5,2.57281578]
[1727214675978,7.9298628,2654.6,2654.5,2.57281578]
[1727214676184,9.90234208,2654.6,2654.5,2.57281578]
[1727214678455,9.90289695,2654.6,2654.5,2.57281578]
[1727214678692,9.64163217,2654.6,2654.5,2.57281578]
[1727214678855,7.9298628,2654.6,2654.5,2.57281578]
[1727214679055,7.9298628,2654.6,2654.5,2.50296896]
[1727214679353,7.9298628,2654.6,2654.5,2.56723839]
[1727214679790,7.92865288,2654.6,2654.5,2.56723839]
[1727214684787,7.92865288,2654.6,2654.5,2.50296896]
[1727214684992,7.92865288,2654.6,2654.5,2.56128347]
[1727214689183,8.32297449,2654.6,2654.5,2.56128347]
[1727214689409,6.61181824,2654.6,2654.5,2.50296896]
[1727214689583,8.32287857,2654.6,2654.5,2.50296896]
[1727214693285,8.32273884,2654.6,2654.5,2.50296896]
[1727214694319,8.32275197,2654.6,2654.5,2.50296896]